[Event "13th Chennai Open 2022"]
[Site "Chennai"]
[Date "2022.06.24"]
[Round "8.16"]
[White "Mrithyunjay Mahadevan"]
[Black "Kunal, M.."]
[Result "0-1"]
[ECO "B12"]
[WhiteElo "1661"]
[BlackElo "2277"]
[Annotator "TA"]
[PlyCount "72"]
[EventDate "2022.06.19"]
[EventType "swiss"]
[EventCountry "IND"]
[SourceTitle "playchess.com"]
[Source "ChessBase"]
[SourceQuality "1"]
[TimeControl "5400+30"]

{[%evp 9,72,40,42,30,25,14,14,18,18,11,14,-64,-22,-25,-21,-23,-19,-11,0,-51,-42,-55,-42,-45,-51,-36,0,0,100,99,86,90,88,-35,-23,-41,-43,-82,-94,-84,-85,-84,-92,-352,-364,-341,-334,-334,-94,-107,-106,-451,-447,-876,-899,-945,-921,-1295,-1164,-1389,-1256,-29985,-29986,-29981,-29976]} 1. e4 {[%emt 0:00:03]} c6 {[%emt 0:00:05]} 2. d4 {[%emt 0:00:06]} d5 {[%emt 0:00:04]} 3. e5 {[%emt 0:00:08]} Bf5 {[%emt 0:00:05]} 4. h4 {[%emt 0:00:12]} Qc8 {[%emt 0:00:06]} 5. h5 {[%emt 0:02:04]} h6 {[%emt 0:00:51]} 6. c4 {[%emt 0:01:56] B12: Caro-Kann: Advance Variation.} e6 {[%emt 0:03:32]} 7. Nc3 {[%emt 0:00:37] [#]} Ne7 $146 {[%emt 0:00:13]} ({Predecessor:} 7... Bb4 8. a3 Ba5 9. Be3 Ne7 10. Rc1 Bxc3+ 11. bxc3 Nd7 12. g4 Bh7 13. Nh3 Nb6 14. cxd5 Nexd5 {0-1 (38) Kostenko,P (2476)-Gunina,V (2518) Almaty 2016}) 8. g4 {[%emt 0:08:46] The position is equal.} Bh7 {[%emt 0:00:07]} 9. Be3 {[%emt 0:03:29]} dxc4 {[%emt 0:00:37]} 10. a4 {[%emt 0:03:31] Against b5} (10. Bxc4 $11 Nd7 11. Nge2) 10... a5 {[%emt 0:03:17]} (10... c5 $5) 11. Bxc4 {[%emt 0:00:59]} Na6 {[%emt 0:00:10]} 12. Rc1 {[%emt 0:05:02]} Nb4 {[%emt 0:01:27]} 13. Nh3 {[%emt 0:01:13]} Ned5 {[%emt 0:01:29]} 14. Nf4 {[%emt 0:03:48]} (14. Nxd5 $11 exd5 15. Be2) 14... Nxf4 $15 {[%emt 0:05:17]} 15. Bxf4 {[%emt 0:00:11]} Qd7 {[%emt 0:00:04]} 16. O-O {[%emt 0:01:55]} Be7 {[%emt 0:01:22]} 17. Be3 {[%emt 0:05:59]} Rd8 {[%emt 0:01:14]} 18. f4 {[%emt 0:14:29]} Nd5 {[%emt 0:08:21]} (18... O-O $11 {keeps the balance.}) 19. Bxd5 $16 {[%emt 0:01:23]} cxd5 {[%emt 0:00:07]} 20. f5 {[%emt 0:09:23]} exf5 {[%emt 0:05:58]} 21. Qf3 {[%emt 0:00:28]} (21. Nb5 $16 {[%cal Oe5e6] Hoping for e6!} O-O 22. Rc7) 21... f4 $1 $15 {[%emt 0:00:08]} 22. Nb5 {[%emt 0:02:37]} O-O {[%emt 0:03:35]} 23. Rc7 {[%emt 0:01:40]} ({Don't blunder} 23. Qxf4 $2 Bg5 24. Qg3 Bxe3+ 25. Qxe3 Qxg4+ 26. Kf2 Qxh5 $19) 23... Qe6 $36 {[%emt 0:00:12][%mdl 2048] Keeping White busy.} 24. Bxf4 {[%emt 0:00:11]} ({But not} 24. Qxf4 Bg5 25. Qg3 Bxe3+ 26. Qxe3 Qxg4+ 27. Kf2 Rc8 $17) 24... Be4 {[%emt 0:00:23]} 25. Qg3 {[%emt 0:00:57]} Rc8 {[%emt 0:01:25][%cal Bd8c8,Bc8c2,Bc2f2][%mdl 32]} 26. Rxb7 $2 {[%emt 0:03:41][%mdl 8192]} (26. Be3 $17) 26... Rc2 $19 {[%emt 0:02:14][%cal Oe7h4] Strongly threatening ...Bh4!} 27. Rf2 {[%emt 0:00:48] [#]} Rxf2 {[%emt 0:00:09]} 28. Kxf2 {[%emt 0:00:04] [#]} f6 $2 {[%emt 0:07:24]} (28... g5 $1 $19 {[%cal Rg5f4] is more deadly.} 29. hxg6 (29. Bd2 $2 f6 $19) 29... fxg6) 29. Ke2 $17 {[%emt 0:11:12]} fxe5 {[%emt 0:02:05] Chess con chili.} 30. dxe5 {[%emt 0:00:50][%mdl 8192]} (30. Bxe5 $17 {nothing else works.} Bf3+ 31. Qxf3 Rxf3 32. Kxf3) 30... d4 $19 {[%emt 0:06:17][%cal Bd5d4,Bd4d3,Bd3d2][%mdl 32] ( -> ...Qc4+)} 31. Rc7 {[%emt 0:00:25] Against Qc4+} (31. Rxe7 $142 Qxe7 32. Nd6) 31... d3+ {[%emt 0:07:52]} 32. Kd2 {[%emt 0:09:28]} Bd8 {[%emt 0:06:14] This bishop pair is nice.} 33. Ke3 {[%emt 0:03:44]} d2 {[%emt 0:04:59]} 34. Nc3 {[%emt 0:01:32]} Bxc7 {[%emt 0:00:10]} 35. Kxe4 {[%emt 0:00:16]} Qc4+ {[%emt 0:00:34]} 36. Ke3 {[%emt 0:00:14] [#]} Qxc3+ $3 {[%emt 0:30:23][%mdl 512] Weighted Error Value: White=0.88/Black=0.26 (precise)} 0-1

[Event "13th Chennai Open 2022"]
[Site "Chennai"]
[Date "2022.06.24"]
[Round "8.17"]
[White "Badrinarayanan N"]
[Black "Jubin Jimmy"]
[Result "0-1"]
[ECO "A00"]
[WhiteElo "1574"]
[BlackElo "2259"]
[Annotator "TA"]
[PlyCount "56"]
[EventDate "2022.06.19"]
[EventType "swiss"]
[EventCountry "IND"]
[SourceTitle "playchess.com"]
[Source "ChessBase"]
[SourceQuality "1"]
[TimeControl "5400+30"]

{[%evp 9,56,-33,-15,-18,1,-35,-28,-50,-47,-50,-37,-70,-71,-107,-64,-70,-71,-70,-74,-78,-53,-56,-45,-50,-45,-79,-79,-83,-79,-79,-69,-70,-67,-78,-76,-307,-322,-304,-281,-548,-545,-535,-518,-595,-587,-822,-815,-1443,-782]} 1. g3 {[%emt 0:00:23]} d5 {[%emt 1:31:00]} 2. Bg2 {[%emt 0:00:13]} e5 {[%emt 0:00:06]} 3. e3 {[%emt 0:00:23]} Nf6 {[%emt 0:00:29]} 4. Ne2 {[%emt 0:00:16]} Bd6 {[%emt 0:00:17]} 5. O-O {[%emt 0:00:22]} O-O {[%emt 1:31:47]} 6. d4 {[%emt 0:00:15] [#] A00: Irregular Openings.} Nbd7 $146 {[%emt 1:32:13][%cal Bb8d7,Bd7b6,Bb6d5,Bd5b4,Bb4d3][%mdl 32]} ({Predecessor:} 6... e4 7. b3 Bf5 8. c4 c6 9. Nbc3 Re8 10. cxd5 cxd5 11. Bd2 Nc6 12. Rc1 h6 {1-0 (49) Kekana,L (1182)-Nkoana,K (1059) Gauteng 2017}) 7. c4 {[%emt 0:00:55]} dxc4 {[%emt 0:00:40]} 8. Nbc3 {[%emt 0:00:21] Black has an edge.} Qe7 {[%emt 0:00:43]} 9. Nb5 {[%emt 0:02:56]} e4 {[%emt 0:02:08]} 10. Qc2 {[%emt 0:03:47]} Nb6 {[%emt 0:01:12]} 11. a4 {[%emt 0:00:35]} Nbd5 {[%emt 0:11:03]} 12. Nxd6 {[%emt 0:03:16]} cxd6 {[%emt 0:00:27]} 13. Qxc4 {[%emt 0:12:26]} Be6 {[%emt 0:02:02][%cal Od5e3,Bc8e6,Be6c4,Bc4d3][%mdl 32] White must now prevent ...Nxe3!} 14. Qc2 {[%emt 0:02:34]} Nb4 {[%emt 0:04:18]} 15. Qd1 {[%emt 0:14:27]} Bc4 {[%emt 0:03:16]} 16. Bd2 {[%emt 0:04:10]} Nd3 {[%emt 0:03:26] Pair of Knights!} 17. Bc3 {[%emt 0:01:51]} Rfc8 {[%emt 0:02:56]} 18. Qd2 {[%emt 0:02:01]} Rc7 {[%emt 0:00:28]} 19. Nc1 {[%emt 0:02:30]} Qe6 {[%emt 1:05:31]} 20. Nxd3 {[%emt 0:01:06]} Bxd3 {[%emt 0:00:03]} 21. Rfc1 {[%emt 0:00:59]} Rac8 {[%emt 1:01:46]} 22. b4 $2 {[%emt 0:03:14] [#] This move loses the game for White.} (22. Qe1 $17) 22... Nd5 $1 $19 {[%emt 0:00:00][%cal Bf6d5,Bd5b4,Bb4d3][%mdl 32]} 23. Ra3 {[%emt 0:04:26]} Qg4 {[%emt 0:00:00]} 24. Bf1 $2 {[%emt 0:14:39]} (24. h3 Qe2 25. Qxe2 Bxe2 26. Bxe4 Rxc3 27. Raxc3 Rxc3 28. Rxc3 Nxc3 29. Bxb7) 24... Bxf1 {[%emt 0:00:00] Black is clearly winning.} ({And not} 24... Nxc3 25. Raxc3 Rxc3 26. Rxc3 $11) ({Not} 24... Rxc3 25. Rcxc3 Nxc3 26. Rxc3 $11) 25. Kxf1 {[%emt 0:00:04] [#]} Nxb4 $1 {[%emt 0:00:00][%mdl 512]} 26. Qe2 {[%emt 0:10:13]} (26. a5 h5) 26... Qf3 {[%emt 0:00:00][%cal Rf3h1]} 27. Qd2 {[%emt 0:02:11]} Nd3 {[%emt 0:00:00]} 28. Rc2 {[%emt 0:00:22]} Qh1+ {[%emt 0:00:00] Weighted Error Value: White=0.77/Black=0.06 (flawless)} 0-1

[Event "13th Chennai Open 2022"]
[Site "Chennai"]
[Date "2022.06.25"]
[Round "9.1"]
[White "Nitin, S.."]
[Black "Ravichandran, Siddharth"]
[Result "1/2-1/2"]
[ECO "B12"]
[WhiteElo "2399"]
[BlackElo "2352"]
[Annotator "TA"]
[PlyCount "95"]
[EventDate "2022.06.19"]
[EventType "swiss"]
[EventCountry "IND"]
[SourceTitle "playchess.com"]
[Source "ChessBase"]
[SourceQuality "1"]
[TimeControl "5400+30"]

{[%evp 9,95,0,0,0,0,0,16,0,0,0,0,0,0,0,0,-32,0,-21,6,-58,-36,-55,19,11,19,20,124,108,120,114,114,120,122,119,116,123,109,122,108,123,116,115,180,171,176,185,211,57,53,57,59,61,70,50,50,32,32,32,32,31,29,31,61,56,65,49,50,35,40,41,295,291,279,272,368,363,244,80,87,41,43,48,56,27,31,20,21,20]} 1. e4 {[%emt 0:00:32]} c6 {[%emt 0:00:09]} 2. d4 {[%emt 0:01:15]} d5 {[%emt 0:00:07]} 3. e5 {[%emt 0:00:05]} c5 {[%emt 0:00:08]} 4. dxc5 {[%emt 0:01:28]} e6 {[%emt 0:00:05]} 5. a3 {[%emt 0:00:06]} Bxc5 {[%emt 0:00:10]} 6. b4 {[%emt 0:04:45] B12: Caro-Kann: Advance Variation.} Be7 {[%emt 0:00:18]} 7. Nf3 {[%emt 0:00:44]} Nd7 {[%emt 0:01:13]} (7... a5 $5 {[%cal Ra5b4]}) 8. Be2 {[%emt 0:07:12]} a5 {[%emt 0:05:15]} 9. b5 {[%emt 0:00:40]} f6 {[%emt 0:01:25]} 10. Bb2 {[%emt 0:14:35]} fxe5 {[%emt 0:06:20]} 11. Nxe5 {[%emt 0:00:12]} Bf6 {[%emt 0:04:08] [#]} 12. f4 $146 {[%emt 0:04:55]} ({Predecessor:} 12. Nd3 Bxb2 13. Nxb2 Qf6 14. c3 Ne7 15. O-O O-O 16. Qd2 Nc5 17. Ra2 e5 18. Nd3 {0-1 (46) Mullick,R (2386)-Ivanovic,M (2245) Belgrade 2021}) 12... Nh6 {[%emt 0:04:34][%cal Bg8h6,Bh6f5,Bf5e3][%mdl 32]} 13. O-O {[%emt 0:05:19]} O-O {[%emt 0:17:37]} 14. c4 {[%emt 0:04:44]} (14. Nd2 $11) 14... Nf5 $15 {[%emt 0:06:00] aiming for ...Ne3.} 15. Bd3 {[%emt 0:18:34]} (15. cxd5 Ne3 16. Qd4 Nxf1 17. Bxf1 exd5 $17) 15... Bxe5 {[%emt 0:17:34]} (15... dxc4 $1 $15 16. Bxf5 (16. Bxc4 $2 Ne3 $19) 16... exf5 17. Qd5+ Kh8 18. Qxc4 Nxe5 19. fxe5 Bg5) 16. fxe5 $11 {[%emt 0:00:16]} Ne3 {[%emt 0:00:38][%csl LRc4,LRd1,LRf1]} 17. Rxf8+ {[%emt 0:03:55]} Nxf8 {[%emt 0:13:31]} (17... Qxf8 $11 18. Qd2 (18. Qh5 g6 $11) 18... Nxc4 19. Bxc4 dxc4) 18. Qd2 $1 $16 {[%emt 0:01:57]} Ng4 {[%emt 0:00:08] Strongly threatening ...Qb6+.} 19. Qf4 $1 $36 {[%emt 0:04:10][%mdl 2048] White is on the roll.} dxc4 {[%emt 0:04:16]} 20. Bxc4 {[%emt 0:01:46]} Qd1+ {[%emt 0:01:17]} 21. Bf1 {[%emt 0:01:09] Black must now prevent Nd2. A strong pair of Bishops.} Ng6 {[%emt 0:01:42]} 22. Qd2 {[%emt 0:00:30]} Qxd2 {[%emt 0:09:03]} 23. Nxd2 {[%emt 0:00:11]} Ne3 {[%emt 0:01:49]} 24. Nc4 {[%emt 0:00:53]} Nxc4 {[%emt 0:00:36]} 25. Bxc4 {[%emt 0:00:13]} Nf4 {[%emt 0:01:33]} (25... a4 $16 {was called for.} 26. Rd1 Kf7) 26. Rd1 $18 {[%emt 0:01:42]} Nd5 {[%emt 0:00:07]} 27. a4 {[%emt 0:02:59]} ({Don't play} 27. Bxd5 exd5 28. Rc1 (28. Rxd5 Be6 $16) 28... Bd7 $16) 27... Bd7 {[%emt 0:00:57]} 28. Bxd5 $2 {[%emt 0:01:03]} (28. Rxd5 $18 exd5 29. Bxd5+ Kf8 30. Bxb7 (30. Ba3+ Ke8 $16)) 28... exd5 $14 {[%emt 0:00:06]} 29. Rxd5 $18 {[%emt 0:00:04][%mdl 4096] Endgame KRB-KRB} Be6 {[%emt 0:00:10]} 30. Rd6 {[%emt 0:00:14]} Re8 {[%emt 0:00:33]} 31. Bc3 {[%emt 0:00:50]} Kf7 {[%emt 0:01:19]} 32. Kf2 {[%emt 0:02:44]} Rc8 {[%emt 0:00:48]} 33. Bxa5 {[%emt 0:02:29] Hoping for Bd2.} Ra8 {[%emt 0:00:10]} 34. Bd2 {[%emt 0:00:16] And now a5 would win.} Rxa4 {[%emt 0:00:08]} 35. Rb6 {[%emt 0:00:22]} Ra7 {[%emt 0:02:51]} 36. Ke3 {[%emt 0:01:18]} Bc8 {[%emt 0:00:40]} 37. Ke4 {[%emt 0:03:47] White is more active.} Ra2 {[%emt 0:00:46]} 38. e6+ {[%emt 0:00:56]} Ke8 {[%emt 0:00:42]} 39. Rd6 {[%emt 0:02:10] Threatens to win with Bg5.} Ke7 $2 {[%emt 0:00:27][%mdl 8192]} ({Black should try} 39... h6 $1 $14) 40. Ke5 {[%emt 0:00:10] Bg5+ would kill now.} h6 {[%emt 0:00:05] Prevents Bg5+.} 41. Rd4 $1 {[%emt 0:01:45]} Rb2 {[%emt 0:00:20]} 42. Bb4+ {[%emt 0:00:18]} Ke8 {[%emt 0:00:01] [#]} 43. e7 $2 {[%emt 0:01:47]} (43. Re4 $1 $18 {is the precise move to win.}) 43... Re2+ $16 {[%emt 0:00:02] [#]} 44. Kf4 {[%emt 0:00:22]} (44. Kd5 $1 $16 {[%cal Rd5c4]} Rxg2 45. Bc5) 44... Bd7 $14 {[%emt 0:00:01]} 45. Kf3 {[%emt 0:04:42]} Bxb5 {[%emt 0:00:50]} 46. Rf4 {[%emt 0:01:07] Rf5 is the strong threat.} Re6 $1 {[%emt 0:00:03]} 47. Rf8+ {[%emt 0:00:18]} Kd7 {[%emt 0:00:01]} 48. Rd8+ {[%emt 0:01:58] Weighted Error Value: White=0.20 (precise) /Black=0.20 (precise)} 1/2-1/2

[Event "13th Chennai Open 2022"]
[Site "Chennai"]
[Date "2022.06.25"]
[Round "9.2"]
[White "Prasannaa.s"]
[Black "Savchenko, Boris"]
[Result "0-1"]
[ECO "B01"]
[WhiteElo "2164"]
[BlackElo "2524"]
[Annotator "TA"]
[PlyCount "114"]
[EventDate "2022.06.19"]
[EventType "swiss"]
[EventCountry "IND"]
[SourceTitle "playchess.com"]
[Source "ChessBase"]
[SourceQuality "1"]
[TimeControl "5400+30"]

{[%evp 11,114,27,37,9,19,18,11,9,11,18,21,7,19,10,14,9,21,14,19,0,0,0,0,0,0,0,0,0,0,0,-8,-13,0,-8,0,0,0,-5,-7,-7,-4,-7,0,0,0,0,0,2,10,10,2,0,12,12,12,12,12,12,30,13,31,17,52,55,56,56,69,52,47,51,51,-493,-477,-457,-264,-467,-468,-468,-468,-460,-462,-608,-597,-4103,-6330,-6083,-5501,-5270,-4804,-29967,-29967,-29975,-29976,-29976,-29977,-29977,-29978,-29977,-29978,-29979,-29980,-29981,-29982,-29981,-29982]} 1. e4 {[%emt 0:04:44]} d5 {[%emt 0:05:01]} 2. exd5 {[%emt 0:01:21]} Qxd5 {[%emt 0:00:06]} 3. Nc3 {[%emt 0:00:08]} Qa5 {[%emt 0:00:05]} 4. d4 {[%emt 0:00:06]} Nf6 {[%emt 1:27:18]} 5. Nf3 Bf5 {[%emt 0:00:00]} 6. Bc4 {[%emt 0:00:37]} e6 {[%emt 0:00:00]} 7. Bd2 {[%cal Oc3d5] [#] Threatens to win with Nd5! B01: Scandinavian Defence.} Bb4 $1 {[%emt 0:01:30][%mdl 4] is recently more successful than 7...c6.} 8. a3 {[%emt 0:04:36]} Bxc3 {[%emt 0:00:00]} 9. Bxc3 {[%emt 0:00:04] The position is equal.} Qb6 {[%emt 0:01:00]} 10. d5 {[%emt 0:03:19]} Nbd7 {[%emt 0:00:30]} 11. dxe6 {[%emt 0:02:10]} Bxe6 {[%emt 0:00:00]} 12. Bxe6 {[%emt 0:04:27]} Qxe6+ {[%emt 0:00:00]} 13. Qe2 {[%emt 0:00:30]} Qxe2+ {[%emt 0:00:00]} 14. Kxe2 {[%emt 0:00:00]} O-O-O {[%emt 0:02:00] [#]} 15. Rhd1 $146 {[%emt 0:00:12]} ({Predecessor:} 15. Rhe1 Nd5 16. Bd2 Nc5 17. Kf1 Rhe8 18. Rxe8 Rxe8 19. Re1 Rxe1+ 20. Kxe1 Kd7 21. Ke2 f6 22. c4 Nb6 23. Be3 Ne6 {½-½ (23) Thavandiran,S (2410)-Naroditsky,D (2616) Burlingame 2019}) 15... Ne4 {[%emt 0:00:00]} 16. Be1 {[%emt 0:00:10]} Rhe8 {[%emt 0:00:00] [#] Strongly threatening ...Nc3+.} 17. Kf1 {[%emt 0:00:21]} Nb6 {[%emt 0:00:00][%cal Bd7b6,Bb6d5,Bd5e7,Be7c6][%mdl 32]} 18. Rxd8+ {[%emt 0:04:27]} Rxd8 {[%emt 0:00:00]} 19. Ne5 {[%emt 0:00:08]} f6 {[%emt 0:00:00]} 20. Nd3 {[%emt 0:00:08]} Nd5 {[%emt 0:03:00]} 21. Rc1 {[%emt 1:13:32]} b6 {[%emt 0:00:00]} 22. Ke2 {[%emt 0:00:30]} Ne7 {[%emt 0:00:00]} 23. f3 {[%emt 0:00:00]} Nd6 {[%emt 0:01:30]} 24. g4 {[%emt 0:00:00]} Nc6 {[%emt 0:00:00]} 25. Bf2 {[%emt 0:00:00] Inhibits Nd4+.} Nc4 {[%emt 0:00:00]} 26. a4 {[%emt 0:02:00]} a5 {[%emt 0:00:00]} 27. b3 {[%emt 0:00:00]} Re8+ {[%emt 0:00:00]} 28. Kf1 {[%emt 0:00:00]} N4e5 {[%emt 0:02:30]} 29. Re1 {[%emt 0:00:00]} Rd8 {[%emt 0:00:00]} 30. Nxe5 {[%emt 0:00:00]} Nxe5 $11 {[%emt 0:00:00][%mdl 4096] Endgame KRB-KRN} 31. Re3 {[%emt 0:02:30]} Kb7 {[%emt 0:00:00]} 32. Ke2 {[%emt 0:00:00]} Rd7 {[%emt 0:00:00]} 33. h4 {[%emt 0:00:00]} Nc6 {[%emt 0:00:00]} 34. c3 {[%emt 0:00:00] Prevents Nd4+.} Rd8 {[%emt 0:00:00]} 35. Bg3 {[%emt 0:00:00]} Kc8 {[%emt 0:00:00]} 36. h5 {[%emt 0:00:00][%cal Oh5h6] Black should prevent h6!} h6 {[%emt 0:00:00]} 37. Re4 {[%emt 0:00:00]} Kd7 {[%emt 0:00:00]} 38. Ke3 {[%emt 0:00:00]} Rf8 {[%emt 0:00:00]} 39. Kf4 {[%emt 0:00:00]} Ne7 {[%emt 0:00:00]} 40. Re1 {[%emt 0:00:00]} f5 {[%emt 0:00:00]} 41. c4 $2 {[%emt 0:00:00][%mdl 8192] Against Nd5+. Loses the game.} (41. g5 $1 $14 {stays ahead.}) 41... g5+ $19 {[%emt 0:00:00]} 42. hxg6 {[%emt 0:00:00]} Nxg6+ {[%emt 0:07:00]} 43. Ke3 {[%emt 0:00:00]} f4+ {[%emt 0:00:00]} 44. Kf2 {[%emt 0:00:00]} fxg3+ {[%emt 0:00:00]} 45. Kxg3 {[%emt 0:00:00] KRN-KR} Rf6 {[%emt 0:00:00]} 46. Re4 {[%emt 0:00:00]} Re6 {[%emt 0:00:00] aiming for ...Rxe4.} 47. Rxe6 {[%emt 0:00:00]} Kxe6 {[%emt 0:00:00] KN-KP} 48. f4 {[%emt 0:00:00]} Nf8 {[%emt 0:00:00]} 49. Kh4 {[%emt 0:00:00]} Kf6 {[%emt 0:00:00] ( -> ...Nd7)} 50. Kh5 {[%emt 0:00:00]} Kg7 {[%emt 0:00:00] Black mates.} 51. g5 {[%emt 0:00:00]} hxg5 {[%emt 0:00:00]} 52. Kxg5 {[%emt 0:00:00]} Ne6+ {[%emt 0:00:00]} 53. Kf5 {[%emt 0:00:00]} Nd4+ {[%emt 0:00:00]} 54. Ke5 {[%emt 0:00:00]} Nxb3 {[%emt 0:00:00]} 55. Kd5 {[%emt 0:00:00]} c5 {[%emt 0:00:00]} 56. Kc6 {[%emt 0:00:00]} Kf6 {[%emt 0:00:00]} 57. Kxb6 {[%emt 0:00:00]} Kf5 {[%emt 0:00:00] Weighted Error Value: White=0.48/Black=0.03 (flawless)} 0-1

[Event "13th Chennai Open 2022"]
[Site "Chennai"]
[Date "2022.06.25"]
[Round "9.3"]
[White "Konguvel, Ponnuswamy"]
[Black "Fedorov, Alexei"]
[Result "0-1"]
[ECO "B32"]
[WhiteElo "2331"]
[BlackElo "2529"]
[Annotator "TA"]
[PlyCount "92"]
[EventDate "2022.06.19"]
[EventType "swiss"]
[EventCountry "IND"]
[SourceTitle "playchess.com"]
[Source "ChessBase"]
[SourceQuality "1"]
[TimeControl "5400+30"]

{[%evp 14,92,16,28,29,23,29,16,11,6,19,-9,0,-17,-10,-15,-29,-37,-32,-41,-31,-66,-58,-63,-32,-39,-29,-37,-29,-29,-29,-29,-11,-25,0,-2,0,-44,-46,-36,-34,-27,-37,-51,-44,-62,-67,-119,-139,-135,-100,-100,-104,-100,-100,-114,-137,-123,-128,-110,-108,-183,-183,-200,-200,-399,-391,-416,-410,-1023,-1016,-971,-1014,-29982,-29981,-29981,-2361,-29976,-29977,-29980,-29981]} 1. e4 {[%emt 0:00:07]} c5 {[%emt 0:00:08]} 2. Nf3 {[%emt 0:00:12][%cal Bg1f3,Bf3d4,Bd4b5,Bb5a3,Ba3c4][%mdl 32]} Nc6 {[%emt 0:00:05]} 3. d4 {[%emt 0:00:12]} cxd4 {[%emt 0:00:06]} 4. Nxd4 {[%emt 0:00:03]} e5 {[%emt 0:00:27]} 5. Nb5 {[%emt 0:00:21]} d6 {[%emt 0:00:07]} 6. N1c3 {[%emt 0:00:28]} a6 {[%emt 0:00:20]} 7. Na3 {[%emt 0:00:06]} Be6 {[%emt 0:00:44]} 8. Nc4 {[%emt 0:00:38]} Rb8 {[%emt 0:00:46] B32: Sicilian: Löwenthal and Kalashnikov Variations.} 9. a4 {[%emt 0:00:59]} Nb4 {[%emt 0:11:03] 9...Nf6 is more advanced technology.} 10. Nd5 {[%emt 0:09:48]} Bxd5 {[%emt 0:00:57] The position is equal.} 11. exd5 {[%emt 0:00:06]} Nf6 {[%emt 0:00:30][%cal Bg8f6,Bf6e4,Be4d2][%mdl 32]} 12. Ne3 {[%emt 0:02:13]} Qa5 $1 {[%emt 0:02:06][%csl LRc2,LRd5]} 13. Bd2 {[%emt 0:12:46] Threatens to win with Ra3.} Qc5 $1 {[%emt 0:00:22]} 14. c4 {[%emt 0:05:05] [#] a5 is the strong threat.} Ne4 $146 {[%emt 0:01:40]} ({Predecessor:} 14... a5 15. Be2 Ne4 16. Bc1 g6 17. Bd3 Nf6 18. Nc2 Nxc2+ 19. Qxc2 b6 20. O-O Bg7 {½-½ (45) Brzeski,M (2358)-Jakubiec,A (2438) Szklarska Poreba 2021}) 15. a5 {[%emt 0:04:59]} Nxd2 {[%emt 0:04:45]} 16. Qxd2 {[%emt 0:00:23]} b6 $1 {[%emt 0:00:33]} 17. Qd1 {[%emt 0:18:58]} g6 {[%emt 0:03:32]} 18. axb6 {[%emt 0:03:33]} Bh6 {[%emt 0:04:38]} 19. Qa4+ {[%emt 0:00:58]} Ke7 {[%emt 0:01:26]} 20. Ra3 {[%emt 0:03:15]} Bxe3 {[%emt 0:16:14] Active counter play!} 21. fxe3 {[%emt 0:07:15]} Rxb6 {[%emt 0:18:45][%cal Ob4d5] Strongly threatening ...Nxd5!} 22. Be2 {[%emt 0:00:04]} Rc8 {[%emt 0:03:09]} 23. O-O {[%emt 0:00:34]} Rc7 {[%emt 0:00:07]} 24. Rf2 {[%emt 0:11:53]} a5 {[%emt 0:02:27]} 25. Bf1 {[%emt 0:00:34]} Na6 {[%emt 0:02:58][%cal Bb4a6,Ba6c5,Bc5b3][%mdl 32]} 26. Qxa5 {[%emt 0:07:38]} Qxa5 {[%emt 0:03:13]} 27. Rxa5 {[%emt 0:00:02]} Nc5 {[%emt 0:00:08]} 28. Rc2 {[%emt 0:01:32]} Nb3 {[%emt 0:01:17][%mdl 1024] Black has compensation.} 29. Ra3 {[%emt 0:00:26]} h5 {[%emt 0:00:51]} 30. h4 {[%emt 0:00:41] [#]} (30. h3 $15) 30... Rcb7 $1 $17 {[%emt 0:00:16]} 31. Kf2 {[%emt 0:03:26]} Nc5 {[%emt 0:00:11]} 32. Ra2 {[%emt 0:00:33]} Rb3 {[%emt 0:00:46]} (32... f5 {seems wilder.} 33. Kf3 Rb3 34. Be2 Kf6) 33. Be2 {[%emt 0:01:48]} f5 {[%emt 0:03:21]} 34. g3 {[%emt 0:00:04]} Ne4+ {[%emt 0:04:08]} 35. Kf3 {[%emt 0:00:07]} g5 {[%emt 0:00:27]} 36. hxg5 {[%emt 0:00:24]} Nxg5+ {[%emt 0:00:05]} 37. Kf2 {[%emt 0:02:59]} (37. Kg2 $17) 37... Ne4+ $19 {[%emt 0:00:16]} 38. Kf3 {[%emt 0:00:04]} Kf6 {[%emt 0:00:36]} 39. Bf1 $2 {[%emt 0:00:21]} (39. Bd1) 39... Rg7 {[%emt 0:02:37]} 40. Rg2 {[%emt 0:00:27]} Rg4 {[%emt 0:02:27]} 41. Be2 {[%emt 0:03:46] [#]} (41. c5 $142 Nxc5 42. Ba6) 41... f4 $1 {[%emt 0:03:27][%csl Gf4][%cal Rb3e3,Bf5f4,Bf4g3,Bg3g2][%mdl 32]} 42. Ra3 {[%emt 0:00:01] [#]} fxg3 $1 {[%emt 0:02:29][%cal Re4d2]} 43. Bd3 {[%emt 0:01:27]} (43. Bf1 Rf4+) 43... Ng5+ {[%emt 0:00:49]} 44. Ke2 {[%emt 0:00:01]} Rxa3 {[%emt 0:00:59]} (44... Rxb2+ $142 45. Bc2 Rxc2+ 46. Kd3 Rxg2 47. Kc3 Rf2 48. Rb3 g2 49. Rb1 g1=Q 50. Rxg1 Rxg1 51. c5 Rb1 52. cxd6 Ne4+ 53. Kc4 Rbb2 54. d7 Rfc2+ 55. Kd3 Nf2#) 45. bxa3 {[%emt 0:00:02]} h4 {[%emt 0:00:16]} 46. Rg1 {[%emt 0:00:46]} g2 {[%emt 0:00:14] Weighted Error Value: White=0.69/Black=0.19 (very precise)} 0-1